fUST/lending_fUST_20240722
["ID","MTS","AMOUNT","RATE_DAILY","PERIOD"]
[332851335,1721580649480,-500.0,0.00014691,2]
[332851336,1721580649489,-501.28911878,0.00014691,2]
[332851337,1721580649500,-500.0,0.00014691,2]
[332851338,1721580649511,-500.0,0.00014691,2]
[332851339,1721580649522,-500.0,0.00014691,2]
[332851340,1721580649531,-500.0,0.00014691,2]
[332851341,1721580649541,-500.0,0.00014691,2]
[332851342,1721580649552,-500.0,0.00014691,2]
[332851343,1721580649562,-500.0,0.00014691,2]
[332851344,1721580649573,-500.0,0.00014691,2]
[332851345,1721580649584,-500.0,0.00014691,2]
[332851346,1721580649594,-500.0,0.00014691,2]
[332851347,1721580649604,-505.87608225,0.00014691,2]
[332851348,1721580649615,-502.39389801,0.00014691,2]
[332851349,1721580649625,-500.0,0.00014691,2]
[332851350,1721580649635,-501.22756596,0.00014691,2]
[332851351,1721580649645,-500.0,0.00014691,2]
[332851352,1721580649664,-500.0,0.00014691,2]
[332851353,1721580649675,-500.0,0.00014691,2]
[332851354,1721580649685,-500.0,0.00014691,2]
[332851355,1721580649697,-500.0,0.00014691,2]
[332851356,1721580649707,-500.0,0.00014691,2]
[332851357,1721580649717,-500.0,0.00014691,2]
[332851358,1721580649728,-516.79304133,0.00014691,2]
[332851359,1721580649737,-246.76161602,0.00014691,2]
[332851360,1721580649747,-500.0,0.00014691,2]
[332851361,1721580649756,-500.0,0.00014691,2]
[332851362,1721580649766,-519.61993245,0.00014691,2]
[332851363,1721580649776,-500.0,0.00014691,2]
[332851364,1721580649787,-500.0,0.00014691,2]
[332851365,1721580649798,-500.0,0.00014691,2]
[332851366,1721580649810,-500.0,0.00014691,2]
[332851367,1721580649821,-624.01,0.00014691,2]
[332851368,1721580649831,-500.0,0.00014691,2]
[332851369,1721580649841,-500.0,0.00014691,2]
[332851370,1721580649852,-500.0,0.00014691,2]
[332851371,1721580649862,-500.0,0.00014691,2]
[332851372,1721580649872,-500.0,0.00014691,2]
[332851373,1721580649883,-500.0,0.00014691,2]
[332851374,1721580649893,-500.0,0.00014691,2]
[332851375,1721580649907,-151.0,0.00014691,2]
[332851376,1721580649917,-151.0,0.00014691,2]
[332851377,1721580649926,-380.321873,0.00014691,2]
[332851378,1721580649940,-380.321873,0.00014691,2]
[332851379,1721580649951,-491.292977,0.00014691,2]
[332851380,1721580649960,-491.292977,0.00014691,2]
[332851381,1721580649970,-151.0,0.00014691,2]
[332851382,1721580649981,-164.642998,0.00014691,2]
[332851383,1721580649992,-164.642998,0.00014691,2]
[332851384,1721580650002,-151.0,0.00014691,2]
[332851385,1721580650013,-151.0,0.00014691,2]
[332851386,1721580650025,-151.0,0.00014691,2]
[332851387,1721580650035,-151.0,0.00014691,2]
[332851388,1721580650045,-151.0,0.00014691,2]
[332851389,1721580650055,-151.0,0.00014691,2]
[332851390,1721580650065,-154.327644,0.00014691,2]
[332851391,1721580650076,-151.0,0.00014691,2]
[332851392,1721580650086,-322.297917,0.00014691,2]
[332851393,1721580650098,-322.297917,0.00014691,2]
[332851394,1721580650108,-206.50392108,0.00014694,2]
[332851395,1721580650119,-151.0,0.00014694,2]
[332851396,1721580650129,-293.8425286,0.000147,2]
[332851397,1721580650140,-150.112233,0.000147,5]
[332851398,1721580650154,-150.112233,0.000147,3]
[332851399,1721580650164,-150.112233,0.000147,2]
[332851400,1721580650174,-151.0,0.000147,2]
[332851401,1721580650184,-151.0,0.000147,2]
[332851402,1721580650194,-500.0,0.000147,7]
[332851403,1721580650205,-500.0,0.000147,7]
[332851404,1721580650216,-500.0,0.000147,7]
[332851405,1721580650226,-298.06462664,0.000147,7]
[332851406,1721580650236,-293.8425286,0.000147,2]
[332851407,1721580650246,-500.0,0.00014766,2]
[332851408,1721580650256,-500.0,0.00014766,2]
[332851409,1721580650265,-3177.17920159,0.00014774,2]
[332851410,1721580650275,-173.00768243,0.0001478,2]
[332851411,1721580650285,-2650.4,0.00014781,2]
[332851412,1721580650294,-3177.17920159,0.00014783,2]
[332851413,1721580650303,-501.33,0.00014783,2]
[332851414,1721580650314,-500.0,0.00014783,2]
[332851415,1721580650323,-500.0,0.00014783,2]
[332851416,1721580650332,-500.0,0.00014783,2]
[332851417,1721580650342,-2650.4,0.00014783,2]
[332851418,1721580650352,-3177.17920159,0.00014784,2]
[332851419,1721580650361,-22240.2544111,0.00014784,2]
[332851420,1721580650371,-151.0,0.00014784,2]
[332851421,1721580650380,-322.297917,0.00014784,2]
[332851422,1721580650390,-322.297917,0.00014784,2]
[332851423,1721580650403,-2650.4,0.00014791,2]
[332851424,1721580650413,-500.0,0.00014792,2]
[332851425,1721580650423,-500.0,0.00014792,2]
[332851426,1721580650433,-2650.4,0.00014793,2]
[332851427,1721580650442,-2650.4,0.00014793,2]
[332851428,1721580650455,-2650.4,0.00014793,2]
[332851429,1721580650464,-2650.4,0.00014793,2]
[332851430,1721580650473,-2650.4,0.00014793,2]
[332851431,1721580650483,-2650.4,0.00014793,2]
[332851432,1721580650492,-2650.4,0.00014793,2]
[332851433,1721580650502,-2650.4,0.00014793,2]
[332851434,1721580650512,-2650.4,0.00014793,2]
[332851435,1721580650522,-2650.4,0.00014793,2]
[332851436,1721580650531,-2650.4,0.00014793,2]
[332851437,1721580650540,-500.0,0.00014793,2]
[332851438,1721580650551,-500.0,0.00014793,2]
[332851439,1721580650561,-500.0,0.00014793,2]
[332851440,1721580650570,-500.0,0.00014793,2]
[332851441,1721580650580,-500.0,0.00014793,2]
[332851442,1721580650590,-500.0,0.00014793,2]
[332851443,1721580650600,-312.71802095,0.00014793,2]
[332851444,1721580650610,-500.0,0.00014793,2]
[332851445,1721580650620,-500.0,0.00014793,2]
[332851446,1721580650629,-500.0,0.00014793,2]
[332851447,1721580650639,-500.0,0.00014793,2]
[332851448,1721580650650,-500.0,0.00014793,2]
[332851449,1721580650660,-500.0,0.00014793,2]
[332851450,1721580650670,-500.0,0.00014793,2]
[332851451,1721580650680,-500.0,0.00014793,2]
[332851452,1721580650689,-486.68081897,0.00014793,2]
[332851453,1721580650698,-151.0,0.00014793,2]
[332851454,1721580650708,-151.0,0.00014793,2]
[332851455,1721580650717,-380.321873,0.00014793,2]
[332851456,1721580650726,-380.321873,0.00014793,2]
[332851457,1721580650735,-491.292977,0.00014793,2]
[332851458,1721580650745,-491.292977,0.00014793,2]
[332851459,1721580650755,-256.226781,0.00014793,2]
[332851460,1721580650765,-164.642998,0.00014793,2]
[332851461,1721580650774,-164.642998,0.00014793,2]
[332851462,1721580650783,-151.0,0.00014793,2]
[332851463,1721580650793,-242.154464,0.00014793,2]
[332851464,1721580650802,-151.0,0.00014793,2]
[332851465,1721580650811,-300.171193,0.00014793,2]
[332851466,1721580650821,-151.0,0.00014793,2]
[332851467,1721580650831,-151.0,0.00014793,2]
[332851468,1721580650841,-21388.15947379,0.00014794,5]
[332851469,1721580650850,-21526.3226739,0.00014794,5]
[332851470,1721580650859,-500.0,0.00014794,2]
[332851471,1721580650869,-500.0,0.00014794,2]
[332851472,1721580650879,-464.51353044,0.00014794,2]
[332851473,1721580650888,-500.0,0.00014794,2]
[332851474,1721580650897,-683.88,0.00014794,2]
[332851475,1721580650909,-500.0,0.00014794,2]
[332851476,1721580650919,-2306.83,0.00014794,2]
[332851477,1721580650929,-500.0,0.00014794,2]
[332851478,1721580650941,-513.78073335,0.00014794,2]
[332851479,1721580650952,-500.0,0.00014794,2]
[332851480,1721580650962,-500.0,0.00014794,2]
[332851481,1721580650971,-500.0,0.00014794,2]
[332851482,1721580650982,-500.0,0.00014794,2]
[332851483,1721580650991,-500.0,0.00014794,2]
[332851484,1721580651000,-500.0,0.00014794,2]
[332851485,1721580651010,-500.0,0.00014794,2]
[332851486,1721580651019,-500.0,0.00014794,2]
[332851487,1721580651029,-500.0,0.00014794,2]
[332851488,1721580651039,-500.0,0.00014794,2]
[332851489,1721580651049,-500.0,0.00014794,2]
[332851490,1721580651058,-500.0,0.00014794,2]
[332851491,1721580651068,-500.0,0.00014794,2]
[332851492,1721580651077,-500.0,0.00014794,2]
[332851493,1721580651087,-500.0,0.00014794,2]
[332851494,1721580651096,-500.0,0.00014794,2]
[332851495,1721580651105,-500.0,0.00014794,2]
[332851496,1721580651115,-539.84,0.00014794,2]
[332851497,1721580651125,-2033.74,0.00014794,2]
[332851498,1721580651134,-500.0,0.00014794,2]
[332851499,1721580651144,-385.68256539,0.00014794,2]
[332851500,1721580651156,-500.0,0.00014794,2]
[332851501,1721580651165,-508.72962201,0.00014794,2]
[332851502,1721580651174,-500.0,0.00014794,2]
[332851503,1721580651184,-500.0,0.00014794,2]
[332851504,1721580651193,-1177.69,0.00014794,2]
[332851505,1721580651203,-735.43,0.00014794,2]
[332851506,1721580651213,-500.0,0.00014794,2]
[332851507,1721580651222,-554.94,0.00014794,2]
[332851508,1721580651232,-500.0,0.00014794,2]
[332851509,1721580651242,-549.02,0.00014794,2]
[332851510,1721580651252,-685.82,0.00014794,2]
[332851511,1721580651262,-526.07580096,0.00014794,2]
[332851512,1721580651272,-575.57,0.00014794,2]
[332851513,1721580651281,-1031.38,0.00014794,2]
[332851514,1721580651291,-195.40739164,0.00014794,2]
[332851515,1721580651301,-500.0,0.00014794,2]
[332851516,1721580651311,-500.0,0.00014794,2]
[332851517,1721580651321,-500.0,0.00014794,2]
[332851518,1721580651331,-500.0,0.00014794,2]
[332851519,1721580651340,-500.0,0.00014794,2]
[332851520,1721580651349,-500.0,0.00014794,2]
[332851521,1721580651358,-714.38,0.00014794,2]
[332851522,1721580651368,-482.64260497,0.00014794,2]
[332851523,1721580651378,-504.67079767,0.00014794,2]
[332851524,1721580651387,-500.0,0.00014794,2]
[332851525,1721580651397,-500.0,0.00014794,2]
[332851526,1721580651410,-505.12,0.00014794,2]
[332851527,1721580651420,-1365.28,0.00014794,2]
[332851528,1721580651429,-500.0,0.00014794,2]
[332851529,1721580651438,-500.0,0.00014794,2]
[332851530,1721580651447,-647.07,0.00014794,2]
[332851531,1721580651457,-589.48,0.00014794,2]
[332851532,1721580651467,-508.21,0.00014794,2]
[332851533,1721580651476,-500.0,0.00014794,2]
[332851534,1721580651486,-768.59,0.00014794,2]
[332851535,1721580651496,-647.55,0.00014794,2]
[332851536,1721580651505,-500.0,0.00014794,2]
[332851537,1721580651515,-953.2,0.00014794,2]
[332851538,1721580651525,-500.0,0.00014794,2]
[332851539,1721580651535,-500.0,0.00014794,2]
[332851540,1721580651545,-500.0,0.00014794,2]
[332851541,1721580651555,-874.1,0.00014794,2]
[332851542,1721580651564,-519.25,0.00014794,2]
[332851543,1721580651574,-884.66,0.00014794,2]
[332851544,1721580651584,-1057.52,0.00014794,2]
[332851545,1721580651594,-1889.7,0.00014794,2]
[332851546,1721580651604,-500.0,0.00014794,2]
[332851547,1721580651614,-1132.04,0.00014794,2]
[332851548,1721580651624,-666.49,0.00014794,2]
[332851549,1721580651634,-668.28,0.00014794,2]
[332851550,1721580651644,-500.0,0.00014794,2]
[332851551,1721580651657,-500.0,0.00014794,2]
[332851552,1721580651667,-1624.09,0.00014794,2]
[332851553,1721580651676,-976.27,0.00014794,2]
[332851554,1721580651686,-642.19,0.00014794,2]
[332851555,1721580651696,-552.84,0.00014794,2]
[332851556,1721580651706,-837.86,0.00014794,2]
[332851557,1721580651716,-500.0,0.00014794,2]
[332851558,1721580651726,-838.14,0.00014794,2]
[332851559,1721580651736,-500.0,0.00014794,2]
[332851560,1721580651746,-514.57414029,0.00014794,2]
[332851561,1721580651756,-2035.58,0.00014794,2]
[332851562,1721580651766,-554.09,0.00014794,2]
[332851563,1721580651776,-500.0,0.00014794,2]
[332851564,1721580651786,-1328.22,0.00014794,2]
[332851565,1721580651795,-500.0,0.00014794,2]
[332851566,1721580651805,-500.0,0.00014794,2]
[332851567,1721580651815,-506.13,0.00014794,2]
[332851568,1721580651825,-500.0,0.00014794,2]
[332851569,1721580651835,-1470.26,0.00014794,2]
[332851570,1721580651846,-545.879287,0.00014794,2]
[332851571,1721580651856,-2054.5,0.00014794,2]
[332851572,1721580651866,-500.0,0.00014794,2]
[332851573,1721580651877,-628.44,0.00014794,2]
[332851574,1721580651887,-500.0,0.00014794,2]
[332851575,1721580651897,-500.0,0.00014794,2]
[332851576,1721580651912,-700.9,0.00014794,2]
[332851577,1721580651922,-500.0,0.00014794,2]
[332851578,1721580651937,-500.0,0.00014794,2]
[332851579,1721580651947,-500.0,0.00014794,2]
[332851580,1721580651957,-630.92,0.00014794,2]
[332851581,1721580651967,-1078.09,0.00014794,2]
[332851582,1721580651979,-816.07,0.00014794,2]
[332851583,1721580651988,-500.0,0.00014794,2]
[332851584,1721580651998,-627.68,0.00014794,2]
[332851585,1721580652008,-604.38,0.00014794,2]
[332851586,1721580652018,-649.28,0.00014794,2]
[332851587,1721580652029,-2006.04,0.00014794,2]
[332851588,1721580652039,-500.0,0.00014794,2]
[332851589,1721580652048,-500.0,0.00014794,2]
[332851590,1721580652057,-500.0,0.00014794,2]
[332851591,1721580652067,-565.27,0.00014794,2]
[332851592,1721580652076,-527.61,0.00014794,2]
[332851593,1721580652086,-500.0,0.00014794,2]
[332851594,1721580652096,-500.0,0.00014794,2]
[332851595,1721580652106,-500.0,0.00014794,2]
[332851596,1721580652116,-500.0,0.00014794,2]
[332851597,1721580652125,-500.0,0.00014794,2]
[332851598,1721580652136,-666.18,0.00014794,2]
[332851599,1721580652146,-3069.31,0.00014794,2]
[332851600,1721580652160,-859.08,0.00014794,2]
[332851601,1721580652170,-500.0,0.00014794,2]
[332851602,1721580652180,-500.0,0.00014794,2]
[332851603,1721580652189,-500.0,0.00014794,2]
[332851604,1721580652199,-500.0,0.00014794,2]
[332851605,1721580652210,-500.0,0.00014794,2]
[332851606,1721580652219,-1517.82,0.00014794,2]
[332851607,1721580652230,-1176.08,0.00014794,2]
[332851608,1721580652239,-500.0,0.00014794,2]
[332851609,1721580652249,-500.0,0.00014794,2]
[332851610,1721580652258,-500.0,0.00014794,2]
[332851611,1721580652268,-500.0,0.00014794,2]
[332851612,1721580652278,-500.0,0.00014794,2]
[332851613,1721580652288,-1445.42,0.00014794,2]
[332851614,1721580652298,-500.0,0.00014794,2]
[332851615,1721580652308,-500.0,0.00014794,2]
[332851616,1721580652318,-500.0,0.00014794,2]
[332851617,1721580652328,-771.46,0.00014794,2]
[332851618,1721580652338,-2045.09,0.00014794,2]
[332851619,1721580652348,-500.0,0.00014794,2]
[332851620,1721580652358,-500.0,0.00014794,2]
[332851621,1721580652369,-930.2,0.00014794,2]
[332851622,1721580652379,-500.0,0.00014794,2]
[332851623,1721580652389,-684.13,0.00014794,2]
[332851624,1721580652398,-500.0,0.00014794,2]
[332851625,1721580652411,-500.0,0.00014794,2]
[332851626,1721580652421,-687.94,0.00014794,2]
[332851627,1721580652430,-1866.61,0.00014794,2]
[332851628,1721580652440,-1337.16,0.00014794,2]
[332851629,1721580652450,-565.6,0.00014794,2]
[332851630,1721580652459,-561.68,0.00014794,2]
[332851631,1721580652469,-723.1,0.00014794,2]
[332851632,1721580652479,-500.0,0.00014794,2]
[332851633,1721580652488,-1520.82,0.00014794,2]
[332851634,1721580652498,-500.0,0.00014794,2]
[332851635,1721580652508,-1951.93,0.00014794,2]
[332851636,1721580652517,-2114.25,0.00014794,2]
[332851637,1721580652527,-500.0,0.00014794,2]
[332851638,1721580652536,-1164.77,0.00014794,2]
[332851639,1721580652546,-1320.34,0.00014794,2]
[332851640,1721580652556,-744.8,0.00014794,2]
[332851641,1721580652566,-1724.01,0.00014794,2]
[332851642,1721580652577,-500.0,0.00014794,2]
[332851643,1721580652587,-1333.01,0.00014794,2]
[332851644,1721580652597,-500.0,0.00014794,2]
[332851645,1721580652608,-504.86,0.00014794,2]
[332851646,1721580652618,-500.0,0.00014794,2]
[332851647,1721580652628,-531.31,0.00014794,2]
[332851648,1721580652638,-2564.77,0.00014794,2]
[332851649,1721580652649,-503.98,0.00014794,2]
[332851650,1721580652662,-1473.72,0.00014794,2]
[332851651,1721580652671,-500.0,0.00014794,2]
[332851652,1721580652680,-500.0,0.00014794,2]
[332851653,1721580652689,-579.86,0.00014794,2]
[332851654,1721580652699,-674.71,0.00014794,2]
[332851655,1721580652709,-500.0,0.00014794,2]
[332851656,1721580652718,-1005.89,0.00014794,2]
[332851657,1721580652728,-345.65841181,0.00014794,2]
[332851658,1721580652738,-500.0,0.00014794,2]
[332851659,1721580652747,-500.0,0.00014794,2]
[332851660,1721580652757,-5550.3,0.00014794,2]
[332851661,1721580652766,-1341.62,0.00014794,2]
[332851662,1721580652776,-1204.73,0.00014794,2]
[332851663,1721580652785,-500.0,0.00014794,2]
[332851664,1721580652795,-12941.36,0.00014794,2]
[332851665,1721580652805,-1907.18,0.00014794,2]
[332851666,1721580652815,-3689.8,0.00014794,2]
[332851667,1721580652825,-500.0,0.00014794,2]
[332851668,1721580652834,-500.0,0.00014794,2]
[332851669,1721580652844,-1624.15,0.00014794,2]
[332851670,1721580652854,-3041.94,0.00014794,2]
[332851671,1721580652864,-1054.8,0.00014794,2]
[332851672,1721580652874,-2090.47,0.00014794,2]
[332851673,1721580652884,-500.0,0.00014794,2]
[332851674,1721580652894,-1806.74,0.00014794,2]
[332851675,1721580652906,-2202.13,0.00014794,2]
[332851676,1721580652916,-500.0,0.00014794,2]
[332851677,1721580652926,-500.0,0.00014794,2]
[332851678,1721580652936,-4016.4,0.00014794,2]
[332851679,1721580652948,-2213.48,0.00014794,2]
[332851680,1721580652962,-500.0,0.00014794,2]
[332851681,1721580652972,-500.0,0.00014794,2]
[332851682,1721580652982,-500.0,0.00014794,2]
[332851683,1721580652992,-500.0,0.00014794,2]
[332851684,1721580653003,-2197.7,0.00014794,2]
[332851685,1721580653012,-1723.55,0.00014794,2]
[332851686,1721580653023,-500.0,0.00014794,2]
[332851687,1721580653036,-652.01,0.00014794,2]
[332851688,1721580653046,-5397.5,0.00014794,2]
[332851689,1721580653056,-1092.54,0.00014794,2]
[332851690,1721580653066,-993.63,0.00014794,2]
[332851691,1721580653076,-917.62,0.00014794,2]
[332851692,1721580653086,-500.0,0.00014794,2]
[332851693,1721580653096,-500.0,0.00014794,2]
[332851694,1721580653106,-1170.03,0.00014794,2]
[332851695,1721580653116,-716.45,0.00014794,2]
[332851696,1721580653126,-4132.02,0.00014794,2]
[332851697,1721580653135,-500.0,0.00014794,2]
[332851698,1721580653145,-500.0,0.00014794,2]
[332851699,1721580653157,-813.93152834,0.00014794,2]
[332851700,1721580653416,-378.6,0.00014794,2]
[332851701,1721580653429,-1029.57847166,0.00014794,2]
[332851702,1721580653438,-818.39,0.00014794,2]
[332851703,1721580653451,-500.0,0.00014794,2]
[332851704,1721580653460,-935.93,0.00014794,2]
[332851705,1721580653470,-7400.98,0.00014794,2]
[332851706,1721580653480,-930.77,0.00014794,2]
[332851707,1721580653489,-500.0,0.00014794,2]
[332851708,1721580653499,-500.0,0.00014794,2]
[332851709,1721580653509,-734.72,0.00014794,2]
[332851710,1721580653519,-500.0,0.00014794,2]
[332851711,1721580653529,-500.0,0.00014794,2]
[332851712,1721580653739,-1669.97,0.00014794,2]
[332851713,1721580653757,-850.61,0.00014794,2]
[332851714,1721580653767,-500.0,0.00014794,2]
[332851715,1721580653777,-552.12,0.00014794,2]
[332851716,1721580653786,-930.18,0.00014794,2]
[332851717,1721580653796,-639.13873612,0.00014794,2]
[332851718,1721580653811,-500.0,0.00014794,2]
[332851719,1721580653821,-827.41,0.00014794,2]
[332851720,1721580653830,-353.58052245,0.00014794,2]
[332851721,1721580653839,-1082.74,0.00014794,2]
[332851722,1721580653848,-1077.15,0.00014794,2]
[332851723,1721580653858,-2665.28,0.00014794,2]
[332851724,1721580653867,-1492.38,0.00014794,2]
[332851725,1721580653877,-500.0,0.00014794,2]
[332851726,1721580653886,-1378.02,0.00014794,2]
[332851727,1721580653895,-500.0,0.00014794,2]
[332851728,1721580653907,-1450.96,0.00014794,2]
[332851729,1721580653917,-500.0,0.00014794,2]
[332851730,1721580653927,-500.0,0.00014794,2]
[332851731,1721580653940,-500.0,0.00014794,2]
[332851732,1721580653951,-500.0,0.00014794,2]
[332851733,1721580653961,-559.28,0.00014794,2]
[332851734,1721580653970,-776.21,0.00014794,2]
[332851735,1721580653981,-2703.39,0.00014794,2]
[332851736,1721580653991,-500.0,0.00014794,2]
[332851737,1721580654001,-508.21,0.00014794,2]
[332851738,1721580654011,-722.53,0.00014794,2]
[332851739,1721580654020,-1011.22,0.00014794,2]
[332851740,1721580654030,-500.0,0.00014794,2]
[332851741,1721580654040,-521.74,0.00014794,2]
[332851742,1721580654049,-500.0,0.00014794,2]
[332851743,1721580654059,-1538.99,0.00014794,2]
[332851744,1721580654068,-1744.99,0.00014794,2]
[332851745,1721580654077,-500.0,0.00014794,2]
[332851746,1721580654087,-10125.34,0.00014794,2]
[332851747,1721580654096,-500.0,0.00014794,2]
[332851748,1721580654105,-923.66,0.00014794,2]
[332851749,1721580654114,-511.58858143,0.00014794,2]
[332851750,1721580654123,-767.77,0.00014794,2]
[332851751,1721580654132,-4491.18,0.00014794,2]
[332851752,1721580654142,-500.0,0.00014794,2]
[332851753,1721580654152,-1883.32,0.00014794,2]
[332851754,1721580654163,-556.62,0.00014794,2]
[332851755,1721580654173,-500.0,0.00014794,2]
[332851756,1721580654182,-500.0,0.00014794,2]
[332851757,1721580654192,-500.0,0.00014794,2]
[332851758,1721580654202,-710.76,0.00014794,2]
[332851759,1721580654212,-3281.33,0.00014794,2]
[332851760,1721580654222,-763.56,0.00014794,2]
[332851761,1721580654232,-638.5,0.00014794,2]
[332851762,1721580654242,-4482.68,0.00014794,2]
[332851763,1721580654253,-644.61,0.00014794,2]
[332851764,1721580654263,-850.61,0.00014794,2]
[332851765,1721580654275,-500.0,0.00014794,2]
[332851766,1721580654285,-648.14,0.00014794,2]
[332851767,1721580654294,-2313.44,0.00014794,2]
[332851768,1721580654303,-1229.93,0.00014794,2]
[332851769,1721580654312,-6955.44,0.00014794,2]
[332851770,1721580654321,-500.0,0.00014794,2]
[332851771,1721580654331,-5865.42,0.00014794,2]
[332851772,1721580654339,-500.0,0.00014794,2]
[332851773,1721580654349,-500.0,0.00014794,2]
[332851774,1721580654358,-877.65,0.00014794,2]
[332851775,1721580654367,-500.0,0.00014794,2]
[332851776,1721580654377,-500.0,0.00014794,2]
[332851777,1721580654386,-500.0,0.00014794,2]
[332851778,1721580654395,-831.66,0.00014794,2]
[332851779,1721580654407,-313.44,0.00014794,2]
[332851780,1721580654416,-500.0,0.00014794,2]
[332851781,1721580654425,-500.0,0.00014794,2]
[332851782,1721580654434,-500.0,0.00014794,2]
[332851783,1721580654444,-500.0,0.00014794,2]
[332851784,1721580654453,-500.0,0.00014794,2]
[332851785,1721580654462,-213.48,0.00014794,2]
[332851786,1721580654471,-500.0,0.00014794,2]
[332851787,1721580654479,-500.0,0.00014794,2]
[332851788,1721580654488,-500.0,0.00014794,2]
[332851789,1721580654498,-222.11,0.00014794,2]
[332851790,1721580654507,-500.0,0.00014794,2]
[332851791,1721580654516,-500.0,0.00014794,2]
[332851792,1721580654526,-564.77,0.00014794,2]
[332851793,1721580654535,-500.0,0.00014794,2]
[332851794,1721580654544,-500.0,0.00014794,2]
[332851795,1721580654553,-539.22,0.00014794,2]
[332851796,1721580654563,-202.13,0.00014794,2]
[332851797,1721580654572,-197.7,0.00014794,2]
[332851798,1721580654582,-500.0,0.00014794,2]
[332851799,1721580654592,-500.0,0.00014794,2]
[332851800,1721580654601,-500.0,0.00014794,2]
[332851801,1721580654610,-500.0,0.00014794,2]
[332851802,1721580654620,-306.83,0.00014794,2]
[332851803,1721580654630,-500.0,0.00014794,2]
[332851804,1721580654639,-500.0,0.00014794,2]
[332851805,1721580654648,-306.83,0.00014794,2]
[332851806,1721580654662,-500.0,0.00014794,2]
[332851807,1721580654671,-564.77,0.00014794,2]
[332851808,1721580654681,-500.0,0.00014794,2]
[332851809,1721580654690,-500.0,0.00014794,2]
[332851810,1721580654700,-500.0,0.00014794,2]
[332851811,1721580654709,-383.32,0.00014794,2]
[332851812,1721580654718,-500.0,0.00014794,2]
[332851813,1721580654728,-500.0,0.00014794,2]
[332851814,1721580654737,-500.0,0.00014794,2]
[332851815,1721580654746,-500.0,0.00014794,2]
[332851816,1721580654755,-500.0,0.00014794,2]
[332851817,1721580654765,-500.0,0.00014794,2]
[332851818,1721580654774,-1139.67932091,0.00014794,2]
[332851819,1721580654783,-213.48,0.00014794,2]
[332851820,1721580654792,-151.0,0.00014794,2]
[332851821,1721580654802,-224.644796,0.00014794,2]
[332851822,1721580654810,-151.0,0.00014794,2]
[332851823,1721580654820,-151.0,0.00014794,2]
[332851824,1721580654829,-151.0,0.00014794,2]
[332851825,1721580654838,-151.0,0.00014794,2]
[332851826,1721580654847,-151.0,0.00014794,2]
[332851827,1721580654856,-151.0,0.00014794,2]
[332851828,1721580654865,-151.0,0.00014794,2]
[332851829,1721580654874,-151.0,0.00014794,2]
[332851830,1721580654883,-151.0,0.00014794,2]
[332851831,1721580654892,-151.0,0.00014794,2]
[332851832,1721580654905,-151.0,0.00014794,2]
[332851833,1721580654914,-151.0,0.00014794,2]
[332851834,1721580654923,-151.0,0.00014794,2]